fUST/lending_fUST_20250214
["ID","MTS","AMOUNT","RATE_DAILY","PERIOD"]
[353083048,1739545843964,-1357.08,0.00013863,2]
[353083049,1739545843974,-500.0,0.00013863,2]
[353083050,1739545843983,-1639.03,0.00013863,2]
[353083051,1739545843993,-500.0,0.00013863,2]
[353083052,1739545844002,-689.91,0.00013863,2]
[353083053,1739545844012,-1602.13,0.00013863,2]
[353083054,1739545844022,-500.0,0.00013863,2]
[353083055,1739545844032,-500.0,0.00013863,2]
[353083057,1739545844042,-503.88815816,0.00013863,2]
[353083059,1739545844051,-500.0,0.00013863,2]
[353083061,1739545844060,-735.61,0.00013863,2]
[353083063,1739545844070,-3814.24,0.00013863,2]
[353083073,1739545844156,-500.0,0.00013863,2]
[353083075,1739545844165,-650.64,0.00013863,2]
[353083078,1739545844174,-2599.97,0.00013863,2]
[353083081,1739545844183,-500.0,0.00013863,2]
[353083084,1739545844193,-14272.86,0.00013863,2]
[353083087,1739545844202,-500.0,0.00013863,2]
[353083090,1739545844211,-500.0,0.00013863,2]
[353083093,1739545844220,-500.0,0.00013863,2]
[353083095,1739545844232,-1274.51,0.00013863,2]
[353083099,1739545844242,-1392.8,0.00013863,2]
[353083101,1739545844251,-500.0,0.00013863,2]
[353083104,1739545844260,-500.0,0.00013863,2]
[353083107,1739545844269,-500.0,0.00013863,2]
[353083110,1739545844278,-500.0,0.00013863,2]
[353083113,1739545844287,-500.0,0.00013863,2]
[353083116,1739545844297,-500.0,0.00013863,2]
[353083119,1739545844306,-1310.29,0.00013863,2]
[353083122,1739545844315,-500.0,0.00013863,2]
[353083125,1739545844324,-500.0,0.00013863,2]
[353083128,1739545844333,-555.02,0.00013863,2]
[353083131,1739545844342,-500.0,0.00013863,2]
[353083134,1739545844351,-500.0,0.00013863,2]
[353083136,1739545844360,-1937.65,0.00013863,2]
[353083138,1739545844369,-500.0,0.00013863,2]
[353083140,1739545844379,-500.0,0.00013863,2]
[353083142,1739545844388,-5538.92,0.00013863,2]
[353083144,1739545844397,-378.3472983,0.00013863,2]
[353083146,1739545844406,-500.0,0.00013863,2]
[353083148,1739545844416,-45371.88,0.00013863,2]
[353083150,1739545844425,-473.27003304,0.00013863,2]
[353083152,1739545844435,-4213.11,0.00013863,2]
[353083154,1739545844445,-500.0,0.00013863,2]
[353083156,1739545844454,-500.0,0.00013863,2]
[353083158,1739545844463,-512.5487656,0.00013863,2]
[353083160,1739545844476,-7920.95,0.00013863,2]
[353083162,1739545844487,-500.0,0.00013863,2]
[353083164,1739545844497,-500.0,0.00013863,2]
[353083166,1739545844506,-500.0,0.00013863,2]
[353083168,1739545844516,-500.46450138,0.00013863,2]
[353083170,1739545844526,-2370.05,0.00013863,2]
[353083172,1739545844536,-500.0,0.00013863,2]
[353083173,1739545844545,-970.69,0.00013863,2]
[353083176,1739545844556,-500.0,0.00013863,2]
[353083178,1739545844566,-1523.74,0.00013863,2]
[353083179,1739545844575,-500.0,0.00013863,2]
[353083181,1739545844586,-500.0,0.00013863,2]
[353083184,1739545844597,-500.0,0.00013863,2]
[353083186,1739545844606,-500.0,0.00013863,2]
[353083188,1739545844616,-537.85,0.00013863,2]
[353083190,1739545844625,-532.51,0.00013863,2]
[353083192,1739545844635,-752.11,0.00013863,2]
[353083193,1739545844644,-500.0,0.00013863,2]
[353083196,1739545844655,-19956.94,0.00013863,2]
[353083198,1739545844664,-500.0,0.00013863,2]
[353083199,1739545844673,-500.0,0.00013863,2]
[353083201,1739545844683,-500.0,0.00013863,2]
[353083204,1739545844692,-500.0,0.00013863,2]
[353083205,1739545844703,-4249.87,0.00013863,2]
[353083207,1739545844712,-500.0,0.00013863,2]
[353083209,1739545844721,-500.0,0.00013863,2]
[353083211,1739545844733,-500.0,0.00013863,2]
[353083213,1739545844742,-2248.16,0.00013863,2]
[353083216,1739545844751,-500.0,0.00013863,2]
[353083217,1739545844761,-2189.71,0.00013863,2]
[353083220,1739545844771,-697.69,0.00013863,2]
[353083222,1739545844781,-3554.45,0.00013863,2]
[353083223,1739545844790,-1742.83,0.00013863,2]
[353083226,1739545844800,-500.0,0.00013863,2]
[353083227,1739545844810,-441.86751855,0.00013863,2]
[353083230,1739545844819,-3894.12,0.00013863,2]
[353083231,1739545844829,-507.39,0.00013863,2]
[353083233,1739545844838,-500.0,0.00013863,2]
[353083235,1739545844847,-500.0,0.00013863,2]
[353083237,1739545844857,-1923.97,0.00013863,2]
[353083239,1739545844866,-8153.87,0.00013863,2]
[353083241,1739545844875,-517.97320949,0.00013863,2]
[353083243,1739545844885,-500.0,0.00013863,2]
[353083245,1739545844894,-1484.41,0.00013863,2]
[353083247,1739545844904,-787.68,0.00013863,2]
[353083249,1739545844914,-503.20950647,0.00013863,2]
[353083251,1739545844923,-500.0,0.00013863,2]
[353083253,1739545844933,-925.83,0.00013863,2]
[353083256,1739545844943,-1870.36,0.00013863,2]
[353083258,1739545844953,-500.0,0.00013863,2]
[353083260,1739545844962,-2417.26,0.00013863,2]
[353083262,1739545844972,-507.09090585,0.00013863,2]
[353083264,1739545844983,-501.17268667,0.00013863,2]
[353083266,1739545844993,-620.67284341,0.00013863,2]
[353083268,1739545845002,-267.17055502,0.00013863,2]
[353083270,1739545845012,-500.0,0.00013863,2]
[353083272,1739545845021,-359.07613809,0.00013863,2]
[353083274,1739545845030,-500.0,0.00013863,2]
[353083276,1739545845039,-333.73388459,0.00013863,2]
[353083278,1739545845048,-500.0,0.00013863,2]
[353083280,1739545845058,-500.0,0.00013863,2]
[353083282,1739545845067,-500.0,0.00013863,2]
[353083284,1739545845076,-500.0,0.00013863,2]
[353083286,1739545845086,-4531.05,0.00013863,2]
[353083288,1739545845095,-500.0,0.00013863,2]
[353083290,1739545845105,-663.57,0.00013863,2]
[353083292,1739545845114,-151.0,0.00013863,2]
[353083294,1739545845123,-500.0,0.00013863,2]
[353083296,1739545845132,-3184.25,0.00013863,2]
[353083298,1739545845142,-503.69583216,0.00013863,2]
[353083300,1739545845151,-500.0,0.00013863,2]
[353083302,1739545845161,-500.0,0.00013863,2]
[353083304,1739545845171,-151.0,0.000139,2]
[353083306,1739545845180,-151.0,0.000139,2]
[353083308,1739545845190,-151.0,0.000139,2]
[353083310,1739545845199,-151.0,0.000139,2]
[353083312,1739545845208,-151.0,0.000139,2]
[353083315,1739545845217,-154.519,0.00013924,2]
[353083319,1739545845226,-150.0,0.00013924,2]
[353083322,1739545845236,-12845.89538918,0.0001393,2]
[353083324,1739545845245,-1870.7976546,0.00013937,2]
[353083326,1739545845254,-12263.01930423,0.00013945,5]
[353083328,1739545845263,-656.0,0.00013945,2]
[353083330,1739545845272,-500.0,0.00013945,2]
[353083333,1739545845282,-500.0,0.00013945,2]
[353083335,1739545845291,-500.0,0.00013945,2]
[353083337,1739545845300,-516.62,0.00013945,2]
[353083339,1739545845309,-814.96,0.00013945,2]
[353083341,1739545845318,-500.0,0.00013945,2]
[353083343,1739545845328,-500.0,0.00013945,2]
[353083345,1739545845337,-500.0,0.00013945,2]
[353083347,1739545845347,-500.0,0.00013945,2]
[353083351,1739545845356,-500.0,0.00013945,2]
[353083353,1739545845365,-1578.25,0.00013945,2]
[353083355,1739545845374,-1060.88,0.00013945,2]
[353083357,1739545845383,-892.87,0.00013945,2]
[353083359,1739545845393,-502.62087509,0.00013945,2]
[353083361,1739545845402,-500.0,0.00013945,2]
[353083363,1739545845411,-763.33,0.00013945,2]
[353083365,1739545845420,-500.0,0.00013945,2]
[353083367,1739545845430,-628.69,0.00013945,2]
[353083369,1739545845439,-502.94758613,0.00013945,2]
[353083371,1739545845448,-804.65,0.00013945,2]
[353083373,1739545845457,-500.0,0.00013945,2]
[353083375,1739545845466,-500.0,0.00013945,2]
[353083377,1739545845476,-355.9463624,0.00013945,2]
[353083379,1739545845491,-500.0,0.00013945,2]
[353083381,1739545845499,-500.0,0.00013945,2]
[353083383,1739545845509,-500.0,0.00013945,2]
[353083385,1739545845519,-1452.96,0.00013945,2]
[353083387,1739545845528,-500.0,0.00013945,2]
[353083389,1739545845539,-500.0,0.00013945,2]
[353083391,1739545845548,-500.0,0.00013945,2]
[353083393,1739545845557,-567.81,0.00013945,2]
[353083395,1739545845567,-306.57359155,0.00013945,2]
[353083405,1739545845577,-1782.06,0.00013945,2]
[353083407,1739545845659,-500.0,0.00013945,2]
[353083409,1739545845669,-500.0,0.00013945,2]
[353083411,1739545845679,-500.0,0.00013945,2]
[353083413,1739545845688,-500.0,0.00013945,2]
[353083415,1739545845697,-716.06,0.00013945,2]
[353083417,1739545845707,-676.0,0.00013945,2]
[353083419,1739545845716,-500.0,0.00013945,2]
[353083421,1739545845725,-500.0,0.00013945,2]
[353083423,1739545845740,-500.0,0.00013945,2]
[353083425,1739545845749,-643.82150707,0.00013945,2]
[353083427,1739545845758,-167.3974172,0.00013945,2]
[353083429,1739545845768,-500.0,0.00013945,2]
[353083431,1739545845777,-1357.08,0.00013945,2]
[353083433,1739545845786,-500.0,0.00013945,2]
[353083435,1739545845795,-1639.03,0.00013945,2]
[353083437,1739545845804,-689.91,0.00013945,2]
[353083439,1739545845814,-1602.13,0.00013945,2]
[353083441,1739545845823,-500.0,0.00013945,2]
[353083443,1739545845832,-178.61536,0.00013945,2]
[353083445,1739545845842,-735.61,0.00013945,2]
[353083447,1739545845852,-3814.24,0.00013945,2]
[353083449,1739545845861,-650.64,0.00013945,2]
[353083451,1739545845871,-2599.97,0.00013945,2]
[353083453,1739545845880,-14272.86,0.00013945,2]
[353083455,1739545845889,-500.0,0.00013945,2]
[353083458,1739545845899,-625.51123241,0.00013945,2]
[353083460,1739545845908,-500.0,0.00013945,2]
[353083461,1739545845917,-1274.51,0.00013945,2]
[353083463,1739545845927,-1392.8,0.00013945,2]
[353083465,1739545845936,-500.0,0.00013945,2]
[353083468,1739545845945,-500.0,0.00013945,2]
[353083469,1739545845955,-500.0,0.00013945,2]
[353083472,1739545845965,-500.0,0.00013945,2]
[353083474,1739545845974,-500.0,0.00013945,2]
[353083476,1739545845987,-1310.29,0.00013945,2]
[353083477,1739545845996,-500.0,0.00013945,2]
[353083480,1739545846005,-502.52088211,0.00013945,2]
[353083482,1739545846014,-555.02,0.00013945,2]
[353083484,1739545846024,-500.0,0.00013945,2]
[353083486,1739545846033,-1937.65,0.00013945,2]
[353083488,1739545846043,-181.85589958,0.00013945,2]
[353083490,1739545846052,-5538.92,0.00013945,2]
[353083492,1739545846061,-506.87092836,0.00013945,2]
[353083494,1739545846070,-45371.88,0.00013945,2]
[353083496,1739545846083,-4213.11,0.00013945,2]
[353083498,1739545846091,-500.0,0.00013945,2]
[353083500,1739545846101,-7920.95,0.00013945,2]
[353083502,1739545846110,-500.0,0.00013945,2]
[353083504,1739545846119,-500.0,0.00013945,2]
[353083506,1739545846133,-2370.05,0.00013945,2]
[353083508,1739545846142,-500.0,0.00013945,2]
[353083510,1739545846151,-970.69,0.00013945,2]
[353083512,1739545846160,-500.0,0.00013945,2]
[353083514,1739545846169,-1523.74,0.00013945,2]
[353083516,1739545846179,-500.0,0.00013945,2]
[353083518,1739545846188,-500.0,0.00013945,2]
[353083520,1739545846197,-537.85,0.00013945,2]
[353083522,1739545846206,-532.51,0.00013945,2]
[353083524,1739545846215,-752.11,0.00013945,2]
[353083526,1739545846224,-500.0,0.00013945,2]
[353083528,1739545846236,-19956.94,0.00013945,2]
[353083530,1739545846245,-500.0,0.00013945,2]
[353083532,1739545846257,-500.0,0.00013945,2]
[353083533,1739545846266,-4249.87,0.00013945,2]
[353083534,1739545846275,-262.66571303,0.00013945,2]
[353083535,1739545846285,-500.0,0.00013945,2]
[353083536,1739545846294,-500.0,0.00013945,2]
[353083537,1739545846303,-2248.16,0.00013945,2]
[353083538,1739545846312,-500.0,0.00013945,2]
[353083539,1739545846321,-2189.71,0.00013945,2]
[353083540,1739545846331,-697.69,0.00013945,2]
[353083541,1739545846341,-3554.45,0.00013945,2]
[353083542,1739545846350,-1742.83,0.00013945,2]
[353083543,1739545846359,-3894.12,0.00013945,2]
[353083544,1739545846368,-507.39,0.00013945,2]
[353083545,1739545846378,-500.0,0.00013945,2]
[353083546,1739545846387,-500.0,0.00013945,2]
[353083547,1739545846396,-1923.97,0.00013945,2]
[353083548,1739545846405,-8153.87,0.00013945,2]
[353083549,1739545846415,-151.0,0.00013945,2]
[353083550,1739545846424,-1484.41,0.00013945,2]
[353083551,1739545846434,-787.68,0.00013945,2]
[353083552,1739545846444,-224.02,0.00013945,2]
[353083554,1739545846453,-925.83,0.00013945,2]
[353083555,1739545846463,-1870.36,0.00013945,2]
[353083557,1739545846474,-151.0,0.00013945,2]
[353083559,1739545846487,-2417.26,0.00013945,2]
[353083562,1739545846497,-500.0,0.00013945,2]
[353083564,1739545846506,-500.0,0.00013945,2]
[353083565,1739545846515,-500.0,0.00013945,2]
[353083567,1739545846525,-503.50750254,0.00013945,2]
[353083569,1739545846534,-151.0,0.00013945,2]
[353083571,1739545846543,-500.0,0.00013945,2]
[353083573,1739545846552,-4531.05,0.00013945,2]
[353083575,1739545846561,-151.0,0.00013945,2]
[353083578,1739545846572,-500.0,0.00013945,2]
[353083580,1739545846581,-663.57,0.00013945,2]
[353083582,1739545846591,-500.0,0.00013945,2]
[353083584,1739545846600,-3184.25,0.00013945,2]
[353083586,1739545846610,-500.0,0.00013945,2]
[353083588,1739545846619,-196.936266,0.00013945,2]
[353083590,1739545846628,-196.936266,0.00013945,2]
[353083592,1739545846637,-764.61,0.00013969,2]
[353083594,1739545846647,-184.32364873,0.00013979,2]
[353083596,1739545846656,-184.32364873,0.00013979,2]
[353083598,1739545846666,-184.32364873,0.00013979,2]
[353083600,1739545846675,-184.32364873,0.00013979,2]
[353083602,1739545846684,-184.32364873,0.00013979,2]
[353083604,1739545846693,-184.32364873,0.00013979,2]
[353083606,1739545846703,-184.32364873,0.00013979,2]
[353083608,1739545846712,-184.32364873,0.00013979,2]
[353083610,1739545846721,-184.32364873,0.00013979,2]
[353083612,1739545846731,-184.32364873,0.00013979,2]
[353083614,1739545846740,-184.32364873,0.00013979,2]
[353083616,1739545846749,-184.32364873,0.00013979,2]
[353083618,1739545846759,-184.32364873,0.00013979,2]
[353083620,1739545846768,-184.32364873,0.00013979,2]
[353083622,1739545846778,-184.32364873,0.00013979,2]
[353083624,1739545846787,-184.32364873,0.00013979,2]
[353083626,1739545846796,-184.32364873,0.00013979,2]
[353083628,1739545846805,-184.32364873,0.00013979,2]
[353083630,1739545846814,-184.32364873,0.00013979,2]
[353083632,1739545846823,-184.32,0.00013979,2]
[353083634,1739545846832,-900.98377035,0.00013979,2]
[353083636,1739545846841,-900.98377035,0.00013979,2]
[353083638,1739545846850,-900.98377035,0.00013979,2]
[353083639,1739545846859,-900.98377035,0.00013979,2]
[353083641,1739545846870,-900.98377035,0.00013979,2]
[353083643,1739545846879,-900.98377035,0.00013979,2]
[353083645,1739545846888,-900.98377035,0.00013979,2]
[353083647,1739545846897,-900.98377035,0.00013979,2]
[353083649,1739545846907,-900.98377035,0.00013979,2]
[353083652,1739545846917,-900.98377035,0.00013979,2]
[353083654,1739545846926,-900.98377035,0.00013979,2]
[353083655,1739545846935,-900.98377035,0.00013979,2]
[353083657,1739545846945,-900.98377035,0.00013979,2]
[353083666,1739545847027,-900.98377035,0.00013979,2]
[353083668,1739545847039,-900.98377035,0.00013979,2]
[353083670,1739545847050,-900.98377035,0.00013979,2]
[353083672,1739545847059,-900.98377035,0.00013979,2]
[353083674,1739545847069,-900.98377035,0.00013979,2]
[353083676,1739545847078,-900.98377035,0.00013979,2]
[353083678,1739545847089,-900.98,0.00013979,2]
[353083680,1739545847099,-496.09008664,0.00013979,2]
[353083682,1739545847108,-496.09008664,0.00013979,2]
[353083684,1739545847117,-496.09008664,0.00013979,2]
[353083686,1739545847126,-496.09008664,0.00013979,2]
[353083688,1739545847135,-496.09008664,0.00013979,2]
[353083690,1739545847144,-496.09008664,0.00013979,2]
[353083692,1739545847153,-496.09008664,0.00013979,2]
[353083694,1739545847162,-496.09008664,0.00013979,2]
[353083696,1739545847172,-496.09008664,0.00013979,2]
[353083698,1739545847181,-496.09008664,0.00013979,2]
[353083700,1739545847190,-496.09008664,0.00013979,2]
[353083702,1739545847200,-496.09008664,0.00013979,2]
[353083704,1739545847209,-496.09008664,0.00013979,2]
[353083706,1739545847218,-496.09008664,0.00013979,2]
[353083708,1739545847227,-496.09008664,0.00013979,2]
[353083710,1739545847238,-496.09008664,0.00013979,2]
[353083712,1739545847247,-496.09008664,0.00013979,2]
[353083714,1739545847256,-496.09008664,0.00013979,2]
[353083716,1739545847266,-496.09008664,0.00013979,2]
[353083718,1739545847275,-496.09,0.00013979,2]
[353083720,1739545847284,-151.0,0.00014,2]
[353083722,1739545847294,-151.0,0.00014,2]
[353083724,1739545847303,-151.0,0.00014,2]
[353083726,1739545847312,-151.0,0.00014,2]
[353083729,1739545847322,-151.0,0.00014,2]
[353083731,1739545847331,-151.0,0.00014,2]
[353083733,1739545847341,-3000.0,0.00014,2]
[353083734,1739545847350,-151.0,0.00014,2]
[353083736,1739545847359,-151.0,0.00014,2]
[353083738,1739545847368,-673.93625263,0.00014,2]
[353083740,1739545847377,-160.0,0.00014026,2]
[353083743,1739545847387,-656.0,0.00014027,2]
[353083745,1739545847396,-500.0,0.00014027,2]
[353083747,1739545847405,-500.0,0.00014027,2]
[353083748,1739545847415,-500.0,0.00014027,2]
[353083751,1739545847424,-814.96,0.00014027,2]
[353083753,1739545847434,-500.0,0.00014027,2]
[353083755,1739545847444,-507.42600864,0.00014027,2]
[353083757,1739545847454,-389.53169094,0.00014027,2]
[353083759,1739545847463,-508.2616777,0.00014027,2]
[353083761,1739545847473,-500.0,0.00014027,2]
[353083763,1739545847485,-1578.25,0.00014027,2]
[353083764,1739545847494,-1060.88,0.00014027,2]
[353083766,1739545847503,-892.87,0.00014027,2]
[353083769,1739545847513,-763.33,0.00014027,2]
[353083771,1739545847523,-500.0,0.00014027,2]
[353083773,1739545847533,-628.69,0.00014027,2]
[353083775,1739545847543,-804.65,0.00014027,2]
[353083777,1739545847552,-500.0,0.00014027,2]
[353083779,1739545847561,-503.90206591,0.00014027,2]
[353083781,1739545847573,-503.7709852,0.00014027,2]
[353083783,1739545847583,-500.0,0.00014027,2]
[353083785,1739545847592,-1452.96,0.00014027,2]
[353083787,1739545847601,-492.50337023,0.00014027,2]
[353083788,1739545847610,-500.0,0.00014027,2]
[353083791,1739545847620,-500.0,0.00014027,2]
[353083793,1739545847630,-567.81,0.00014027,2]
[353083795,1739545847647,-1782.06,0.00014027,2]
[353083799,1739545847668,-500.0,0.00014027,2]
[353083801,1739545847685,-500.0,0.00014027,2]
[353083804,1739545847702,-359.64086363,0.00014027,2]
[353083807,1739545847719,-716.06,0.00014027,2]
[353083810,1739545847741,-676.0,0.00014027,2]
[353083812,1739545847758,-512.87525425,0.00014027,2]
[353083815,1739545847773,-500.0,0.00014027,2]
[353083818,1739545847791,-151.0,0.00014027,2]
[353083820,1739545847807,-151.0,0.00014027,2]
[353083823,1739545847820,-151.0,0.00014027,2]
[353083826,1739545847835,-409.64694853,0.00014027,2]
[353083828,1739545847853,-1357.08,0.00014027,2]
[353083831,1739545847874,-151.0,0.00014027,2]
[353083834,1739545847891,-151.0,0.00014027,2]
[353083836,1739545847904,-1639.03,0.00014027,2]
[353083839,1739545847919,-151.0,0.00014027,2]
[353083842,1739545847938,-151.0,0.00014027,2]
[353083844,1739545847952,-689.91,0.00014027,2]
[353083847,1739545848181,-151.0,0.00014027,2]
[353083849,1739545848195,-1602.13,0.00014027,2]
[353083851,1739545848211,-1258.676789,0.00014027,2]
[353083854,1739545848225,-500.0,0.00014027,2]
[353083856,1739545848241,-337.595666,0.00014027,2]
[353083859,1739545848257,-1258.676789,0.00014027,2]
[353083861,1739545848273,-337.595666,0.00014027,2]
[353083864,1739545848288,-735.61,0.00014027,2]
[353083866,1739545848303,-3814.24,0.00014027,2]
[353083868,1739545848318,-151.0,0.00014027,2]
[353083871,1739545848334,-151.155619,0.00014027,2]
[353083874,1739545848349,-650.64,0.00014027,2]
[353083876,1739545848364,-2599.97,0.00014027,2]
[353083878,1739545848379,-151.0,0.00014027,2]
[353083881,1739545848393,-14272.86,0.00014027,2]
[353083883,1739545848407,-500.0,0.00014027,2]
[353083886,1739545848423,-500.0,0.00014027,2]
[353083888,1739545848438,-1274.51,0.00014027,2]
[353083893,1739545848481,-1392.8,0.00014027,2]
[353083897,1739545848510,-500.0,0.00014027,2]
[353083900,1739545848535,-500.0,0.00014027,2]
[353083903,1739545848557,-500.0,0.00014027,2]
[353083906,1739545848578,-500.0,0.00014027,2]
[353083909,1739545848598,-1310.29,0.00014027,2]
[353083911,1739545848614,-419.73504551,0.00014027,2]
[353083914,1739545848630,-555.02,0.00014027,2]
[353083916,1739545848645,-428.35306669,0.00014027,2]
[353083919,1739545848662,-1937.65,0.00014027,2]
[353083921,1739545848677,-5538.92,0.00014027,2]
[353083924,1739545848693,-151.0,0.00014027,2]
[353083926,1739545848707,-45371.88,0.00014027,2]
[353083929,1739545848721,-151.0,0.00014027,2]
[353083931,1739545848738,-4213.11,0.00014027,2]
[353083934,1739545848754,-500.0,0.00014027,2]
[353083936,1739545848768,-191.182875,0.00014027,2]
[353083939,1739545848779,-191.182875,0.00014027,2]
[353083941,1739545848789,-7920.95,0.00014027,2]
[353083943,1739545848800,-500.0,0.00014027,2]
[353083945,1739545848810,-500.0,0.00014027,2]
[353083947,1739545848819,-2370.05,0.00014027,2]
[353083949,1739545848830,-500.0,0.00014027,2]
[353083951,1739545848840,-151.0,0.00014027,2]
[353083953,1739545848851,-970.69,0.00014027,2]
[353083955,1739545848862,-1523.74,0.00014027,2]
[353083972,1739545849026,-500.0,0.00014027,2]
[353083975,1739545849050,-500.0,0.00014027,2]
[353083978,1739545849062,-537.85,0.00014027,2]
[353083980,1739545849071,-532.51,0.00014027,2]
[353083982,1739545849081,-752.11,0.00014027,2]
[353083984,1739545849090,-500.0,0.00014027,2]
[353083986,1739545849101,-19956.94,0.00014027,2]
[353083988,1739545849110,-500.0,0.00014027,2]
[353083989,1739545849119,-500.0,0.00014027,2]
[353083991,1739545849128,-4249.87,0.00014027,2]
[353083993,1739545849138,-151.0,0.00014027,2]
[353083995,1739545849148,-272.575593,0.00014027,2]
[353083997,1739545849158,-500.0,0.00014027,2]
[353084000,1739545849168,-162.811878,0.00014027,2]
[353084002,1739545849178,-500.0,0.00014027,2]
[353084004,1739545849189,-498.575773,0.00014027,2]
[353084006,1739545849198,-2248.16,0.00014027,2]
[353084008,1739545849209,-162.811878,0.00014027,2]
[353084010,1739545849223,-272.575593,0.00014027,2]
[353084012,1739545849234,-416.44259178,0.00014027,2]
[353084014,1739545849244,-498.575773,0.00014027,2]
[353084016,1739545849255,-2189.71,0.00014027,2]
[353084018,1739545849266,-697.69,0.00014027,2]
[353084019,1739545849276,-3554.45,0.00014027,2]
[353084021,1739545849286,-1742.83,0.00014027,2]
[353084024,1739545849297,-151.0,0.00014027,2]
[353084025,1739545849308,-3894.12,0.00014027,2]
[353084028,1739545849319,-507.39,0.00014027,2]
[353084029,1739545849328,-151.0,0.00014027,2]
[353084031,1739545849338,-151.0,0.00014027,2]
[353084033,1739545849349,-500.0,0.00014027,2]
[353084035,1739545849358,-1923.97,0.00014027,2]
[353084037,1739545849368,-151.0,0.00014027,2]
[353084039,1739545849378,-8153.87,0.00014027,2]
[353084041,1739545849389,-1484.41,0.00014027,2]
[353084043,1739545849401,-151.0,0.00014027,2]
[353084046,1739545849411,-787.68,0.00014027,2]
[353084047,1739545849422,-925.83,0.00014027,2]
[353084049,1739545849433,-1870.36,0.00014027,2]
[353084051,1739545849443,-2417.26,0.00014027,2]
[353084053,1739545849453,-500.0,0.00014027,2]
[353084055,1739545849464,-500.0,0.00014027,2]
[353084057,1739545849476,-500.0,0.00014027,2]
[353084060,1739545849492,-500.0,0.00014027,2]
[353084062,1739545849502,-4531.05,0.00014027,2]
[353084063,1739545849512,-500.0,0.00014027,2]
[353084066,1739545849523,-663.57,0.00014027,2]
[353084068,1739545849533,-500.0,0.00014027,2]
[353084070,1739545849543,-3184.25,0.00014027,2]
[353084072,1739545849553,-500.0,0.00014027,2]
[353084074,1739545849563,-566.40566113,0.00014055,2]
[353084076,1739545849574,-151.0,0.00014077,2]
[353084078,1739545849584,-160.0,0.00014078,2]
[353084080,1739545849594,-1009025.78592453,0.00014079,5]
[353084136,1739545850126,-500.0,0.00013698,2]
[353084138,1739545850136,-500.0,0.00013698,2]
[353084140,1739545850146,-500.0,0.00013698,2]
[353084142,1739545850156,-500.0,0.00013698,2]
[353084144,1739545850166,-500.0,0.00013698,2]
[353084146,1739545850175,-500.0,0.00013698,2]
[353084148,1739545850185,-500.0,0.00013698,2]
[353084150,1739545850195,-500.0,0.0001378,2]
[353084152,1739545850204,-500.0,0.0001378,2]
[353084154,1739545850214,-500.0,0.0001378,2]
[353084156,1739545850223,-500.0,0.0001378,2]
[353084158,1739545850233,-500.0,0.0001378,2]
[353084160,1739545850242,-500.0,0.00013863,2]
[353084162,1739545850252,-500.0,0.00013863,2]
[353084164,1739545850262,-500.0,0.00013945,2]
[353084166,1739545850271,-537.23214845,0.00013945,2]
[353084168,1739545850281,-500.0,0.00014027,2]
[353084170,1739545850290,-1056.09687052,0.00014079,5]
[353084172,1739545850300,-4984.91182437,0.00014079,5]
[353084174,1739545850312,-252716.26260123,0.00014079,5]
[353084177,1739545850327,-2000.0,0.00014079,5]